Workbook

Sheet 重点项目
A1: 附件3:
A2: 始兴县“十四五”规划重大项目表
Q3: 单位：万元
A4: 序号 | B4: 项目名称 | C4: 建设阶段 | D4: 建设内容及规模 | E4: 建设起止年限 | F4: 总投资 | M4: 2020年底累计完成投资 | N4: “十四五”期间投资 | P4: 资源要素 | R4: 前期工作进展情况 | S4: 责任单位 | T4: 备注
F5: 小计 | G5: 资金来源 | P5: 项目建设用地总规模（亩） | Q5: “十四五”期间新增建设用地（亩）
G6: 中央财政 | H6: 省财政 | I6: 市县财政 | J6: 企业自筹 | K6: 银行贷款 | L6: 其他 | O6: 其中：2021年投资计划
A7: 总计109项 | F7: =F8+F64+F100+F117+F126 -> 6965028 | G7: =G8+G64+G100+G117+G126 -> 66195 | H7: 1797615 | I7: 623417 | J7: 1679952 | K7: 194153 | L7: 470000 | M7: 474020 | N7: 4761152 | O7: 635275 | P7: 45022 | Q7: 20069
A8: 一、基础设施项目（48项） | F8: =F9+F29+F33+F46+F50+F57+F61 -> 4168164 | G8: 58095 | H8: 1742298 | I8: 340597 | J8: 45005 | K8: 194153 | L8: 152000 | M8: 75734 | N8: 2362574 | O8: 138352 | P8: 9070 | Q8: 1820
A9: （一）交通项目（19项） | F9: =SUM(F10:F28) -> 3531927 | G9: =SUM(G10:G28) -> 0 | H9: 1673869 | I9: 92030 | J9: 0 | K9: 187353 | L9: 0 | M9: 39939 | N9: 1762132 | O9: 42659 | P9: 5649 | Q9: 0
A10: 1 | B10: 武深高速公路始兴联络线 | C10: 新建 | D10: 新建高速公路里程约29.42公里，双向四车道，路基宽26米。 | E10: 2020-2024 | F10: 487900 | G10: 0 | H10: 472900 | I10: 15000 | J10: 0 | K10: 0 | L10: 0 | M10: 36785 | N10: 451115 | O10: 10000 | P10: 2632 | S10: 县交运局
A11: 2 | B11: 始（始兴）阳（阳山）高速 | C11: 新建 | D11: 新建高速公路始兴段里程约35公里，起点位于始兴司前镇对接武深高速、经始兴隘子、经曲江小坑，至曲江马坝接韶赣高速，双向四车道，路基宽26米。 | E11: 2021-2030 | F11: 616000 | M11: 0 | N11: 70000 | R11: 正在开展前期规划研究。 | S11: 县交运局
A12: 3 | B12: 武深与寻（寻乌）全（全南）高速公路连接线 | C12: 新建 | D12: 新建高速公路始兴段里程约34公里，起点位于始兴县顿岗镇白围村附近设互通枢纽对接武深高速与韶赣高速始兴连络线，经澄江镇穿越粤赣省界，经江西省全南县龙源坝镇、至终点位于全南县木金乡燕安村附近设互通枢纽与大广高速公路对接。 | E12: 2021-2030 | F12: 563856 | G12: 0 | H12: 563856 | I12: 0 | J12: 0 | K12: 0 | L12: 0 | M12: 0 | N12: 10000 | O12: 0 | R12: 正在开展前期规划研究。 | S12: 县交运局
A13: 4 | B13: 厦（厦门）昆（昆明）高铁韶关始兴段 | C13: 新建 | D13: 建设始兴段40公里高速铁路，路线走向为：昆明-兴义-河池-桂林-韶关-梅州-厦门，途径始兴隘子镇。 | E13: 2021-2030 | F13: 640000 | M13: 0 | N13: 10000 | O13: 0 | R13: 正在开展前期规划研究。 | S13: 县交运局
A14: 5 | B14: 赣韶铁路复线始兴段（沪穗高铁其中一段） | C14: 新建 | D14: 规划建设国铁I级单线（韶赣铁路复线）约38公里。 | E14: 2021-2030 | F14: 366825 | G14: 0 | H14: 366825 | I14: 0 | J14: 0 | K14: 0 | L14: 0 | M14: 0 | N14: 366825 | O14: 0 | R14: 正在开展前期规划研究。 | S14: 县交运局
A15: 6 | B15: 国道G323线始兴县城段改线工程项目 | C15: 新建 | D15: 起点位于斜潭处与现状国道G323线相接，终点小江坝处与现状国道G323线相接，路线全长7.6公里，项目内容包括道路工程、桥梁工程、给排水工程、交通工程等。 | E15: 2021-2023 | F15: 26647 | G15: 0 | H15: 0 | I15: 26647 | J15: 0 | K15: 0 | L15: 0 | M15: 0 | N15: 26647 | O15: 10000 | P15: 748.2 | R15: 已完成项目立项报批和初步设计编制工作，施工图待省批复。 | S15: 县交运局
A16: 7 | B16: 国道G535线始兴下窖（江西交界）至顿岗 | C16: 新建 | D16: 长约35.16公里，二级公路，双向两车道，路基宽12米。 | E16: 2022-2025 | F16: 63288 | G16: 0 | H16: 63288 | I16: 0 | J16: 0 | K16: 0 | L16: 0 | M16: 0 | N16: 63288 | O16: 0 | P16: 1650.5 | R16: 正在开展工可报告编制等。 | S16: 始兴公路事务中心
A17: 8 | B17: 国道G535线始兴县城至顿岗段 | C17: 新建 | D17: 新改建一级公路9公里，起点位于太平镇斜潭与国道G323线改线工程对接，经沙水工业区北面，至顿岗七北村接回国道G535线。 | E17: 2021-2025 | F17: 31555 | M17: 0 | N17: 31555 | O17: 0 | R17: 积极与上级交通主管部门沟通对接，争取项目建设补助计划。 | S17: 县交运局
A18: 9 | B18: 县际过境公路建设 | C18: 新建 | D18: 包含4条县际过境道路建设：1.隘子过境段公路改建工程（4.71公里）；2.澄江镇过境公路：暖田至南雄主田孔地；3.马市涝洲水经远迳至南雄古市黄洞（约10公里）；4.北山与雄乐高速南雄百顺镇连接线（约10公里）。 | E18: 2020-2025 | F18: 39033 | M18: 793 | N18: 38240 | O18: 3240 | P18: 112.7 | S18: 县交运局
A19: 10 | B19: 沿江南路天元大桥至武深高速南连接线市政道路 | C19: 续建 | D19: 沿江南路天元大桥至武深高速南连接线市政道路，项目分两期建设，一期建设长度1.48Km（天元大桥至墨江上游水坝），二期建设长度1.625Km（墨江上游水坝至武深高速南连接线），建设内容包括路基及防护工程、路面工程、绿化工程、雨污管网工程、路灯工程等。 | E19: 2020-2025 | F19: 18383 | G19: 0 | H19: 0 | I19: 18383 | J19: 0 | K19: 0 | L19: 0 | M19: 2361 | N19: 16022 | P19: 140 | Q19: 0 | R19: 一期已施工完成。 | S19: 县住管局
A20: 11 | B20: 城市道路网建设 | C20: 新建 | D20: 包括：1.新建城东新区沿江北路（天元大桥至武深高速南连接线），道路长约3公里，其中天元大桥至石俚坝段长约1.3公里，道路宽30米，石俚坝至武深高速南连接线段长约1.7公里，道路宽20米，建设内容包括雨污管网、沥青路面、路灯、绿化等市政设施。2.新建城东新区东升路（始兴中学至沿江北路），长约750米，道路宽40米。3.新建沿江南路罗所至沈所段道路工程，道路长约2.6公里，道路宽20米。建设内容雨污管网、沥青路面、路灯、绿化等市政设施等。 | E20: 2021-2025 | F20: 17000 | G20: 0 | H20: 0 | I20: 17000 | J20: 0 | K20: 0 | L20: 0 | M20: 0 | N20: 17000 | O20: 1000 | P20: 240 | R20: 未启动。 | S20: 县住管局
A21: 12 | B21: 城区道路提升改造 | C21: 新建 | D21: 1.沿江北路（山水大桥至梧桐香岸段）升级改造，道路长约1.5公里，主要建设雨污管网、道路、绿道改造升级。2.永安大道升级改造，道路长约1.8公里（调整为市政道路），进行雨污管网、人行道、绿化、健身小路、文体设施等改造建设。 | E21: 2021-2025 | F21: 11000 | G21: 0 | H21: 0 | I21: 11000 | J21: 0 | K21: 0 | L21: 0 | M21: 0 | N21: 11000 | O21: 700 | P21: 126 | R21: 未启动。 | S21: 县住管局
A22: 13 | B22: 站前路连接S343线道路建设项目 | C22: 新建 | D22: 项目起于县火车站，终于G323线与S343线交叉口，线路长865米，路基宽度43.5米。双向6车道，两边人行道、绿道，中间绿化隔离带，路灯照明，管沟等。 | E22: 2021-2022 | F22: 4000 | G22: 0 | H22: 0 | I22: 4000 | J22: 0 | K22: 0 | L22: 0 | M22: 0 | N22: 4000 | O22: 0 | R22: 未启动 | S22: 县代建局
A23: 14 | B23: 环车八岭旅游公路 | C23: 新建 | D23: 包含省道S244线罗坝至凉口段路面改造工程、县道X346线顿岗至罗坝接省道S244线罗坝至司前。路线全长合计约70公里，项目建设内容为加铺沥青混凝土路面。 | E23: 2021-2025 | F23: 17280 | M23: 0 | N23: 17280 | O23: 12276 | R23: 已完成项目工程可行性研究报告编制。 | S23: 县交运局
A24: 15 | B24: 县道新建改造工程 | C24: 新建 | D24: 包括4条县道建设，共计40公里：1.X793线马市至大丘麻垇段（7公里）；2.沈所太坪至水南（12公里规划县道）；3.县道X345线县城至溪丰村委段改线工程（6.5公里）；4.澄江镇潭坑马岗至罗坝都亨桃源三级公路改建（11公里，规划县道）。 | E24: 2021-2025 | F24: 33554 | M24: 0 | N24: 33554 | R24: X793线马市至大丘麻垇段和Y326线八一至黄所段已完成工可编制工作，其余正在开展前期研究工作。 | S24: 县交运局
A25: 16 | B25: 农村公路新建改造项目 | C25: 新建 | D25: 包括新建农村公路工程50公里，农村公路“畅返不畅”专项整治200公里，通自然村路面硬化工程50公里，农村公路等外路改造200公里，农村公路沙土路改造100公里，通现代农业产业园、旅游景区公路70公里。 | E25: 2021-2025 | F25: 99500 | M25: 0 | N25: 99500 | R25: 规划筹备。 | S25: 县交运局
A26: 17 | B26: 乡镇市政道路建设项目 | C26: 新建 | D26: 包含：1.司前镇：新建温下高速口至李屋温泉小镇公路项目（4公里），甘太-江草旅游公路项目（6公里），司前-甘太公路扩建项目。2.深渡水乡：市场路前路建设、长梅村道建设、滨河绿道建设。3.罗坝镇：罗坝至燎原长围旅游公路改建工程（2.2公里）4.顿岗镇：沿江生态路项目、C548老虎岭-长坑公路改建工程（1.717公里）。5.沈所镇：始兴醉美滨江大道（10公里）。6.隘子镇清化山庄到九龄公园沿河道路（1.5公里）。7.体育东路延伸至国道G220道路建设、国道G220延伸至始兴县火车站道路项目（共约1.5公里）。8.环城公路：由国道323线县城过境段（已完成8公里）、G220线沙水至始兴县城段（已完成6.45公里）、武深高速始兴南互通立交连接线（已完成4.3公里）、环城公路城南段（江口小江坝经沈江公路至丰坑水库段，约13公里未完成）组成。9.通物流园区公路（2公里）：位于武深高速始兴南互通出口胆源村。 | E26: 2021-2025 | F26: 91239 | M26: 0 | N26: 91239 | S26: 县交运局
A27: 18 | B27: 北江航道扩能升级上延工程（浈江周田大桥至始兴黄江大桥） | C27: 新建 | D27: 北江航道扩能升级上延工程其中一段为浈江周田大桥至武江口，该段建设里程约37公里，该段延伸至始兴港区，增加约40公里，途径周田、新庄和江口电站，穿越G106线跨浈江大桥、韶赣铁路跨浈江大桥、韶赣高速周田浈江大桥、武深高速跨浈江大桥、糖寮至彭邓屋跨浈江桥、韶赣高速新庄互通跨浈江桥、韶赣高速总甫互通跨浈江桥、C431线跨浈江桥、X793线浈江大桥。拟按通航1000吨级船舶标准进行研究立项。 | E27: 2024-2025 | F27: 394353 | G27: 0 | H27: 207000 | I27: 0 | J27: 0 | K27: 187353 | L27: 0 | M27: 0 | N27: 394353 | O27: 0 | R27: 正在开展前期规划研究。 | S27: 县交运局
A28: 19 | B28: 危桥改建项目 | C28: 新建 | D28: 包括老旧危桥及通行承载力与现代交通通行要求不适应的桥梁等50座危桥改建工程。 | E28: 2021-2025 | F28: 10514 | M28: 0 | N28: 10514 | O28: 5443 | S28: 县交运局
A29: （二）能源项目（3项） | F29: =SUM(F30:F32) -> 50800 | G29: =SUM(G30:G32) -> 0 | H29: 0 | I29: 0 | J29: 41000 | K29: 6800 | L29: 3000 | M29: 2500 | N29: 48300 | O29: 8400 | P29: 27.67 | Q29: 0
A30: 20 | B30: 城区天然气管道建设 | C30: 续建 | D30: 包括规划建设15.5公里的天然气高压管网及天然气站和城区天然气管道及门站。近期（2019-2020年）：天然气综合站（气化区和加气区）1座、LNG储配站1座、城区管网31.7公里； 远期 （2021-2035年）：天然气综合站（高-中压调压站)1座、城区管网29.1公里、高压管线13.1公里。 | E30: 2020-2022 | F30: 9800 | G30: 0 | H30: 0 | I30: 0 | J30: 3000 | K30: 6800 | L30: 0 | M30: 2500 | N30: 7300 | O30: 7300 | P30: 27.67 | Q30: 0 | R30: 2020年10月底已开工建设，预计2021年6月底可完成县城区域通气。 | S30: 县住管局
A31: 21 | B31: 能源基础设施建设 | C31: 新建 | D31: 1.供电基础设施建设：澄江镇新建一座装机容量为35KV，占地面积3000平方米的变电站。 2.加油站建设：新建深渡水乡、澄江镇、城南镇加油站。 | E31: 2021-2025 | F31: 3000 | G31: 0 | H31: 0 | I31: 0 | J31: 0 | K31: 0 | L31: 3000 | M31: 0 | N31: 3000 | O31: 1100 | S31: 县发改局
A32: 22 | B32: 分布式能源、集中供热项目 | C32: 新建 | D32: 在沙水工业园区通过利用管道天燃气开展分布式能源利用、集中供热、供冷、热电联产项目。 | E32: 2021-2022 | F32: 38000 | G32: 0 | H32: 0 | I32: 0 | J32: 38000 | K32: 0 | L32: 0 | M32: 0 | N32: 38000 | S32: 园区管委会
A33: （三）水利工程（12项） | F33: =SUM(F34:F45) -> 196009 | G33: =SUM(G34:G45) -> 41120 | H33: 59429 | I33: 89737 | J33: 0 | K33: 0 | L33: 0 | M33: 11200 | N33: 184809 | O33: 21717 | P33: 1532.69 | Q33: 1491.69
A34: 23 | B34: 北江水系浈水始兴段治理工程 | C34: 新建 | D34: 包括马市段、江口电厂至总甫右岸段、马市堂阁村老甫前至陂田村都安水汇水口段、太平镇水南河段，共治理河道长22.6公里。 | E34: 2021-2025 | F34: 21838 | G34: 6651 | H34: 8635 | I34: 6552 | J34: 0 | K34: 0 | L34: 0 | M34: 0 | N34: 21838 | O34: 3764 | P34: 224.05 | Q34: 224.05 | R34: 马市段可研在修编、江口电厂至总甫右岸段可研已批。 | S34: 县水务局
A35: 24 | B35: 始兴县中小河流治理工程 | C35: 续建 | D35: 包括深渡水瑶族乡长梅水治理工程、都安水（澄江镇瑶前桥至老人院段）治理工程、罗坝镇小安水治理工程、始兴县中小河流治理达标工程，共治理河道长35公里。 | E35: 2020-2024 | F35: 7287 | G35: 0 | H35: 5101 | I35: 2186 | J35: 0 | K35: 0 | L35: 0 | M35: 1200 | N35: 6087 | O35: 1587 | P35: 76 | Q35: 35 | S35: 县水务局
A36: 25 | B36: 山塘（水库）除险加固工程 | C36: 新建 | D36: 包括：1.始兴县病险山塘除险加固工程，对全县共计40宗病险山塘进行除险加固。2.始兴县小型水库除险加固工程，完成7宗小型水库除险加固。 | E36: 2021-2023 | F36: 5723 | M36: 0 | N36: 5723 | O36: 1300 | S36: 县水务局
A37: 26 | B37: 始兴县山洪沟治理工程 | C37: 新建 | D37: 包括隘子镇坝尾河段、顿岗镇吉山水、沈所镇南方河杰井段、深渡水乡汤湖斜至长梅三组段、深渡水乡杉木坑电站至长梅三组段、深渡水乡锅口至横岭村委会段、深渡水乡马子石至良口段、罗坝镇桃源濹坑段、罗坝镇瑶民小安坑段、罗坝镇淋头村佛子哥水东富至造车背段10宗山洪沟治理工程，共新建河堤、护岸50公里。 | E37: 2021-2023 | F37: 10000 | G37: 5000 | H37: 3000 | I37: 2000 | J37: 0 | K37: 0 | L37: 0 | M37: 0 | N37: 10000 | O37: 1800 | P37: 131 | Q37: 131 | R37: 规划在编。 | S37: 县水务局
A38: 27 | B38: 水库建设工程 | C38: 新建 | D38: 包括合水水库、含秀水库、田寮窝水库。 | E38: 2022-2025 | F38: 37900 | G38: 11370 | H38: 15160 | I38: 11370 | J38: 0 | K38: 0 | L38: 0 | M38: 0 | N38: 37900 | O38: 0 | P38: 1101.64 | Q38: 1101.64 | R38: 可研在编。 | S38: 县水务局
A39: 28 | B39: 灌区续建配套与现代化改造工程 | C39: 新建 | D39: 花山灌区续建配套与现代化改造工程和小型灌区续建配套与现代化改造工程 | E39: 2022-2024 | F39: 7043 | G39: 0 | H39: 5634 | I39: 1409 | J39: 0 | K39: 0 | L39: 0 | M39: 0 | N39: 7043 | O39: 0 | P39: 0 | Q39: 0 | R39: 花山灌区修编可研，小型灌区修编初设。 | S39: 县水务局
A40: 29 | B40: 始兴县碧道建设工程 | C40: 新建 | D40: 建设碧道72.5公里。建设内容包括新建健康步道、景观节点、驿站、景观陂头、亲水平台以及河道清淤疏浚等。通过工程建设提升水景观、植入水文化，增设亲水便民设施和公共休闲场所，局部保护与修复自然岸线。 | E40: 2021-2025 | F40: 35905 | G40: 0 | H40: 0 | I40: 35905 | J40: 0 | K40: 0 | L40: 0 | M40: 0 | N40: 35905 | O40: 2000 | R40: 初设在编。 | S40: 县水务局
A41: 30 | B41: 始兴县墨江流域生态保护与修复工程 | C41: 新建 | D41: 水生态修复与保护。 | E41: 2022-2024 | F41: 8500 | G41: 3400 | H41: 3400 | I41: 1700 | J41: 0 | K41: 0 | L41: 0 | M41: 0 | N41: 8500 | O41: 0 | S41: 县水务局
A42: 31 | B42: 始兴县水土保持工程 | C42: 新建 | D42: 包括墨江源头区预防保护工程、花山水库重要水源地预防保护工程、春坑水小流域综合治理工程、瀑布水小流域综合治理工程、丝茅坝水小流域综合治理工程5宗水土保持工程。建设内容为封育保护、林分改造，种植水保林、经济林，坡改梯、封禁治理、土地整治、种草等。 | E42: 2022-2025 | F42: 1747 | G42: 699 | H42: 699 | I42: 349 | J42: 0 | K42: 0 | L42: 0 | M42: 0 | N42: 1747 | O42: 0 | P42: 0 | Q42: 0 | R42: 规划已批。 | S42: 县水务局
A43: 32 | B43: 始兴县农村水系综合整治工程 | C43: 新建 | D43: 岸坡整治242公里，河道清淤疏浚280公里，灌排渠道改造450公里，山塘除险加固82宗，村内池塘清淤疏浚295个，新建小水陂111宗、加固50宗，新建机电排灌站20宗、改造5宗等。 | E43: 2022-2025 | F43: 35000 | G43: 14000 | H43: 14000 | I43: 7000 | J43: 0 | K43: 0 | L43: 0 | M43: 0 | N43: 35000 | O43: 0 | R43: 规划已批。 | S43: 县水务局
A44: 33 | B44: 始兴县水资源配置工程 | C44: 新建 | D44: 新建饮水工程1宗，铺设引水管道8公里。 | E44: 2023-2024 | F44: 3800 | G44: 0 | H44: 3800 | I44: 0 | J44: 0 | K44: 0 | L44: 0 | M44: 0 | N44: 3800 | O44: 0 | R44: 规划在编。 | S44: 县水务局
A45: 34 | B45: 始兴县供水设施改扩建工程 | C45: 续建 | D45: 县城供水管网改造38785米；始兴县花山水厂新建4万立方米/日制水设施。 | E45: 2019-2021 | F45: 21266 | G45: 0 | H45: 0 | I45: 21266 | J45: 0 | K45: 0 | L45: 0 | M45: 10000 | N45: 11266 | O45: 11266 | P45: 0 | Q45: 0 | S45: 供水公司
A46: （四）园区项目（3项） | F46: =SUM(F47:F49) -> 71407 | G46: 0 | H46: 8000 | I46: 63407 | J46: 0 | K46: 0 | L46: 0 | M46: 16831 | N46: 54576 | O46: 14500 | P46: 1071 | Q46: 258
A47: 35 | B47: 工业园区提升改造 | C47: 续建 | D47: 包括标准厂房、沙水工业园小黄河治理、基础设施建设、开发场地平整工程。 | E47: 2020-2025 | F47: 46407 | G47: 0 | H47: 0 | I47: 46407 | J47: 0 | K47: 0 | L47: 0 | M47: 10000 | N47: 36407 | O47: 14500 | P47: 50 | Q47: 250 | S47: 园区管委会
A48: 36 | B48: 马市工业园污水处理厂 | C48: 续建 | D48: 马市工业园污水处理厂设计流量总规模15000立方米/天，一期流量规模7000立方米/天；二期规模为8000立方米/天。 | E48: 2020-2025 | F48: 15000 | G48: 0 | H48: 0 | I48: 15000 | J48: 0 | K48: 0 | L48: 0 | M48: 6831 | N48: 8169 | O48: 0 | P48: 20.63 | Q48: 8.33 | S48: 园区管委会
A49: 37 | B49: 始兴现代物流园区项目 | C49: 新建 | D49: 新建现代物流园总用地1000亩，其中仓储、物流、商服用地500亩，位于武深高速始兴南互通出口胆源村。 | E49: 2021-2025 | F49: 10000 | G49: 0 | H49: 8000 | I49: 2000 | J49: 0 | K49: 0 | L49: 0 | M49: 0 | N49: 10000 | O49: 0 | P49: 1000 | R49: 规划筹备。 | S49: 县交运局
A50: （五）城市建设项目（6项） | F50: =SUM(F51:F56) -> 108092 | G50: 0 | H50: 0 | I50: 52469 | J50: 4005 | K50: 0 | L50: 0 | M50: 3264 | N50: 104828 | O50: 15101 | P50: 209 | Q50: 0
A51: 38 | B51: 城东新区农贸市场（学区地块） | C51: 新建 | D51: 用地面积约17000平方米，建筑面积约1.7万平方米。 | E51: 2021-2025 | F51: 10000 | G51: 0 | H51: 0 | I51: 10000 | J51: 0 | K51: 0 | L51: 0 | M51: 0 | N51: 10000 | O51: 1000 | P51: 26 | R51: 已完成初步方案设计。 | S51: 县住管局
A52: 39 | B52: 始兴县江口三鸟市场 | C52: 新建 | D52: 用地面积约10000平方米，计划建设为活禽屠宰市场，建设内容包括卸禽区、冷却间、冻结间、发货间、屠宰车间、分割车间，配套建设污水处理池、消防水池、水泵房、锅炉房和临街市场及办公用房，建筑面积约6500平方米。 | E52: 2021-2025 | F52: 2500 | G52: 0 | H52: 0 | I52: 2500 | J52: 0 | K52: 0 | L52: 0 | M52: 0 | N52: 2500 | O52: 500 | P52: 15 | S52: 县住管局
A53: 40 | B53: 县城雨污分流管网建设 | C53: 新建 | D53: 将城区17个主要路段28.3公里的县城排水管网及雨污分流工作。 | E53: 2021-2023 | F53: 21689 | G53: 0 | H53: 0 | I53: 21689 | J53: 0 | K53: 0 | L53: 0 | M53: 0 | N53: 21689 | P53: 168.19 | Q53: 0 | R53: 已完成城区雨污分流改造初步项目建议书。 | S53: 县住管局
A54: 41 | B54: 始兴县城市停车场项目 | C54: 新建 | D54: 总用地约71500平方米，建设用地约67500平方米；室外停车场共30000平方米；地下车库37500平方米。将新建场地内给排水、电力及围墙等配套工程。 停车场周边市政道路建设： 1.新人民医院南侧道路（从梧桐香岸至鱼珠潭桥）工程全长2.8公里，宽20米的道路，设计时速40Km/h，双向六车道建设内容包括道路工程、交通设施、综合管线、道路照明、桥涵、拆除工程等； 2.新人民医院地下停车场约25000平方米； 3.文体中心二期地下停车场约12500平方米； 4.始兴中学门前停车场，占地面积约3700平方米； 5.石湖公园停车场，占地面积约2700平方米。 | E54: 2021-2025 | F54: 51618 | M54: 0 | N54: 51618 | O54: 5500 | S54: 县住管局
A55: 42 | B55: 政府大楼西侧停车场及人防工程建设 | C55: 续建 | D55: 1.停车场项目规划用地面积约11763平方米，总建筑面积约10811.76平方米，主要建设一个公共地下停车场，总停车位354个。2.人防工程项目规划用地面积约7162平方米，总建筑面积约4100平方米。地下人防工程建筑面积3465平方米，平时功能地下停车库。该项目按甲防护工程设计，其战时功能为核6级常6级二等人员掩蔽所两个，战时可掩蔽1600人。 | E55: 2019-2021 | F55: 5865 | G55: 0 | H55: 0 | I55: 1860 | J55: 4005 | K55: 0 | L55: 0 | M55: 3264 | N55: 2601 | O55: 2601 | R55: 已开工。 | S55: 县住管局
A56: 43 | B56: 始兴县社会保障建设项目 | C56: 新建 | D56: 1.建设应急救援储备仓库，总用地面积4176.9平方米，建筑总面积3730平方米；2.建设应急救援消防指挥中心，拟建设五层综合业务楼，6层训练塔，以及值班室 、大门、围墙、跑道、挡土墙等附属工程；3.建设智慧城市，包括智慧停车场、智慧市政指挥系统、工地管理系统、监控系统等；4.建设应急指挥中心，覆盖10个乡镇的应急广播系统，应急平台两端设计，含各类应急管理系统、大数据平台、车辆装备采购等。 | E56: 2021-2022 | F56: 16420 | G56: 0 | H56: 0 | I56: 16420 | J56: 0 | K56: 0 | L56: 0 | M56: 0 | N56: 16420 | O56: 5500 | S56: 县发改局
A57: （六）环保工程（3项） | F57: =SUM(F58:F60) -> 59929 | G57: 16975 | H57: 0 | I57: 42954 | J57: 0 | K57: 0 | L57: 0 | M57: 0 | N57: 59929 | O57: 16975 | P57: 180 | Q57: 0
A58: 44 | B58: 始兴县村镇生活垃圾收运和处理项目 | C58: 新建 | D58: 1.包含生活垃圾、餐厨垃圾、建筑垃圾等的分类、回收利用、终端处理等。 2.包括澄江镇、罗坝镇、司前镇、隘子镇、顿岗镇5个垃圾中转站建设。 | E58: 2021-2025 | F58: 32954 | G58: 0 | H58: 0 | I58: 32954 | J58: 0 | K58: 0 | L58: 0 | M58: 0 | N58: 32954 | P58: 180 | Q58: 0 | R58: 未启动。 | S58: 县住管局
A59: 45 | B59: 太平镇生活垃圾综合处理站 | C59: 新建 | D59: 在水南村设立生活垃圾综合处理站（包括相应的厂房、办公室、提炼和处理垃圾的相应设备等）。 | E59: 2021-2025 | F59: 10000 | G59: 0 | H59: 0 | I59: 10000 | J59: 0 | K59: 0 | L59: 0 | M59: 0 | N59: 10000 | S59: 太平镇
A60: 46 | B60: 山水林田湖草生态保护修复试点项目 | C60: 新建 | D60: 1.始兴县环车八岭水环境综合修复工程：建设范围为清化河干流与支流罗坝河流域，主要实施水生态保护修护、水土流失治理、滨河生态廊道建设及水环境治理；2.始兴县马市镇红砂岭山水林田湖草生态保护修复工程（二期）：建设范围为马市镇陆源、赤谷、候陂等3个红砂岭地貌广泛分布地区，项目区分为红砂岭地貌展示区、植被恢复区、水系综合治理区、田园综合整治区等4个分区，规划实施总面积约10472.02亩。 | E60: 2021-2021 | F60: 16975 | G60: 16975 | H60: 0 | I60: 0 | J60: 0 | K60: 0 | L60: 0 | M60: 0 | N60: 16975 | O60: 16975 | R60: 正在进行项目申报。 | S60: 县自然资源局
A61: (七)旅游基础设施项目（2项） | F61: =SUM(F62:F63) -> 150000 | G61: 0 | H61: 1000 | I61: 0 | J61: 0 | K61: 0 | L61: =SUM(L62:L63) -> 149000 | M61: 2000 | N61: 148000 | O61: 19000 | P61: 400 | Q61: 70
A62: 47 | B62: 始兴县全域旅游基础设施建设项目 | C62: 续建 | D62: 1.建设游客服务中心、游客集散中心、旅游营销中心、智慧旅游中心等。2.完善红梨村、水南村、满堂村、长安围、长围、红围等旅游基础设施配套旅游绿道、停车场、观景凉亭等。3.完善古道绿道建设，建设自驾旅居车房车营地，建设旅游厕所。 | E62: 2020-2025 | F62: 30000 | G62: 0 | H62: 1000 | I62: 0 | J62: 0 | K62: 0 | L62: 29000 | M62: 1000 | N62: 29000 | O62: 9000 | P62: 200 | Q62: 50 | S62: 县文广旅体局
A63: 48 | B63: 始兴县环车八岭生态圈旅游综合开发项目 | C63: 续建 | D63: 建设70公里旅游公路路面改造工程，完善环车八岭生态圈沿线汽车营地、停车场、观景台、凉亭、旅游厕所、旅游咨询点、标识牌等配套。 | E63: 2020-2025 | F63: 120000 | G63: 0 | H63: 0 | I63: 0 | J63: 0 | K63: 0 | L63: 120000 | M63: 1000 | N63: 119000 | O63: 10000 | P63: 200 | Q63: 20 | S63: 县文广旅体局
A64: 二、产业项目（32项） | F64: =F65+F80+F87 -> 1662482 | G64: 2100 | H64: 17250 | I64: 31905 | J64: 1149947 | K64: 0 | L64: 219000 | M64: 227620 | N64: 1434862 | O64: 317923 | P64: 34015.4 | Q64: 18094
A65: （一）农林牧渔项目（14项） | F65: =SUM(F66:F79) -> 161344 | G65: 2100 | H65: 17250 | I65: 20264 | J65: 98100 | K65: 0 | L65: 0 | M65: 2566 | N65: 158778 | O65: 100123 | P65: 31412 | Q65: 17192
A66: 49 | B66: 马市镇生猪养殖场项目 | C66: 新建 | D66: 流转土地920亩，总建筑面积200亩，存栏能繁母猪1.3万头，年提供仔猪26万头，年出栏肉猪2头。 | E66: 2021-2022 | F66: 20000 | G66: 0 | H66: 0 | I66: 0 | J66: 20000 | K66: 0 | L66: 0 | M66: 0 | N66: 20000 | O66: 20000 | P66: 920 | R66: 已完成选址、初步勘察、企业备案，已完成土地流转920亩，林地指标已下达258亩。 | S66: 县农业农村局
A67: 50 | B67: 新希望六和始兴县马市镇候陂村连竹坑养猪场建设项目 | C67: 新建 | D67: 建设母猪存栏1.35万头，育肥存栏14.4万头，年出栏生猪30万头规模楼房标准化养殖场。 | E67: 2021-2021 | F67: 58100 | G67: 0 | H67: 0 | I67: 0 | J67: 58100 | K67: 0 | L67: 0 | M67: 0 | N67: 58100 | O67: 58100 | P67: 575 | Q67: 30 | R67: 已完成施工设计，正在进行地勘工作。 | S67: 县农业农村局
A68: 51 | B68: 沈所小龙虾养殖基地 | C68: 新建 | D68: 1200亩的农业稻虾、稻鱼养殖加工产业项目。 | E68: 2021-2021 | F68: 4000 | G68: 0 | H68: 0 | I68: 0 | J68: 4000 | K68: 0 | L68: 0 | M68: 0 | N68: 4000 | O68: 1200 | S68: 县农业农村局
A69: 52 | B69: 九丰葡萄农业产业园 | C69: 续建 | D69: 规划建设3000亩黄金香印葡萄现代农业产业园，首期500亩，主体工程包括建设全国最先进的精准可控的温控系统设备温室大棚、硬底化道路整修、水溶肥蓄水池、挖穴盆栽定植、配套用水设施、配套用电设施、配套生产用房及种苗购买等。购置自动化喷灌系统、抽水泵、监控系统、农机设备等配套生产设备。 | E69: 2020-2025 | F69: 12000 | G69: 0 | H69: 0 | I69: 0 | J69: 12000 | K69: 0 | L69: 0 | M69: 0 | N69: 12000 | O69: 6000 | S69: 县农业农村局
A70: 53 | B70: 杨梅文化主题园项目 | C70: 续建 | D70: 主要建设农旅结合、休闲观光等项目。园内设有杨梅文化科普长廊、杨梅亲子采摘园、游客服务中心、儿童乐园、杨梅加工用房、休闲广场、木屋民宿、户外露营等特色旅游项目，打造成为集杨梅采摘、科普教育、休闲娱乐、乡村旅游于一体的自然生态农业园。整体规划建设面积1000多亩。 | E70: 2020-2021 | F70: 3000 | G70: 0 | H70: 0 | I70: 0 | J70: 3000 | K70: 0 | L70: 0 | M70: 2000 | N70: 1000 | O70: 1000 | S70: 县农业农村局
A71: 54 | B71: 山地柚果园机械化示范基地 | C71: 续建 | D71: 建设500亩山地柚果园机械化示范基地，配置链式货运索道和运输等设备；购电动制遥控喷雾机产品质量检测分析仪、无损测糖仪选果机设备和包装机等、电动遥控喷雾机、自动化清果分级机、包装机等；完善适应山地机械作业道路建设等。 | E71: 2020-2021 | F71: 1500 | G71: 500 | H71: 0 | I71: 0 | J71: 1000 | K71: 0 | L71: 0 | M71: 300 | N71: 1200 | O71: 1200 | P71: 500 | Q71: 0 | R71: 已获得国家农业农村部批复文件，实施方案通过农业农村部和财政部联合公示，目前2020年财政资金500万已经下达。 | S71: 县农业农村局
A72: 55 | B72: 粤港澳大湾区始兴县有机蔬菜基地 | C72: 新建 | D72: 申报蔬菜省级现代农业产业园。 | E72: 2021-2025 | F72: 20000 | M72: 0 | N72: 20000 | O72: 6000 | S72: 县农业农村局
A73: 56 | B73: 2021年高标准农田建设项目 | C73: 新建 | D73: 进行排灌渠、机耕路建设、节水灌溉，土壤改良，科技推广等，面积1.44万亩。 | E73: 2021-2022 | F73: 3100 | G73: 1600 | H73: 1500 | I73: 0 | J73: 0 | K73: 0 | L73: 0 | M73: 0 | N73: 3100 | R73: 已完成项目建议书。 | S73: 县农业农村局
A74: 57 | B74: 拆旧复垦项目 | C74: 新建 | D74: 包括2020年拆旧复垦约1350亩，十四五期间拆旧复垦项目约1600亩。 | E74: 2021-2023 | F74: 14750 | G74: 0 | H74: 14750 | I74: 0 | J74: 0 | K74: 0 | L74: 0 | M74: 0 | N74: 14750 | O74: 6750 | R74: 十四五期间拆旧复垦正在进行项目选址工作。 | S74: 县自然资源局
A75: 58 | B75: 综合性农产品交易物流中心 | C75: 新建 | D75: 在现富艺木材加工厂地块建设一个仓储物流中心，包括冷库、产品检测中心、加工区、贸易区及配送中心等配套设施上，建成仓储、加工、配送、线上线下销售为一体的综合型现代化仓储物流中心。 | E75: 2021-2023 | F75: 2000 | G75: 0 | H75: 0 | I75: 2000 | J75: 0 | K75: 0 | L75: 0 | M75: 0 | N75: 2000 | O75: 500 | P75: 10 | Q75: 10 | R75: 规划中。 | S75: 顿岗镇
A76: 59 | B76: “环车八岭”绿色廊道建设 | C76: 新建 | D76: 以新建武深高速、武深韶赣高速联络线、改建国道G220、G535、省道S343、S244等交通干线和墨江、浈江沿岸景观提升，实行森林生态体系建设。水岸林木绿化率达到80%，城市重要水源地森林植被覆盖率70%。 | E76: 2021-2026 | F76: 1748 | G76: 0 | H76: 0 | I76: 1748 | J76: 0 | K76: 0 | L76: 0 | M76: 0 | N76: 1748 | P76: 2 | Q76: 2 | S76: 县林业局
A77: 60 | B77: 始兴县森林质量提升工程 | C77: 新建 | D77: 对县域内交通主干道两旁、清化河、浈江河两岸的疏残林加强管护、抚育和改造完善森林 生态系统，提高森林质量，促进生态功能发挥。 | E77: 2020-2026 | F77: 15760 | G77: 0 | H77: 0 | I77: 15760 | J77: 0 | K77: 0 | L77: 0 | M77: 266 | N77: 15494 | P77: 17150 | Q77: 17150 | S77: 县林业局
A78: 61 | B78: 森林防火工程 | C78: 新建 | D78: 始兴县生物防火林带建设。在断带区域，选择难燃、耐火性强的树种，新建生物防火林带，对生长不良、经营状况不好及宽度与密度不够的现有生物防火林带，进行加宽加密，加强抚育管理。全县新建生物防火林带120千米，宽度20米，扩建生物防火林带，61公里，面积3705亩.维护生物防火林带95千米（抚育3年）。 | E78: 2021-2025 | F78: 1756 | G78: 0 | H78: 1000 | I78: 756 | J78: 0 | K78: 0 | L78: 0 | M78: 0 | N78: 1756 | O78: 573 | P78: 12255 | S78: 县林业局
A79: 62 | B79: 始兴县“环车八岭”森林生态建设工程 | C79: 新建 | D79: 开展南蛇岭森林公园、刘张家山林场-广东省自然教育基地建设、建设森林小镇2个，森林乡村10个，森林人家10个。 | E79: 2021-2026 | F79: 3630 | M79: 0 | N79: 3630 | S79: 县林业局
A80: （二）工业项目（6项） | F80: =SUM(F81:F86) -> 682047 | G80: 0 | H80: 0 | I80: 0 | J80: 482047 | K80: 0 | L80: 200000 | M80: 153000 | N80: 529047 | O80: 123100 | P80: 709 | Q80: 482
A81: 63 | B81: 忠信项目 | C81: 续建 | D81: 建设覆铜面板、玻璃布、玻璃丝等生产线。 | E81: 2018-2025 | F81: 200000 | G81: 0 | H81: 0 | I81: 0 | J81: 0 | K81: 0 | L81: 200000 | M81: 75000 | N81: 125000 | O81: 30000 | P81: 627 | Q81: 420 | R81: 项目一期基本建成。 | S81: 园区管委会
A82: 64 | B82: 紧固件生产项目 | C82: 新建 | D82: 用地面积为60亩，建设6栋厂房，3栋宿舍，3栋办公楼。 | E82: 2021-2022 | F82: 25000 | G82: 0 | H82: 0 | I82: 0 | J82: 25000 | K82: 0 | L82: 0 | M82: 0 | N82: 25000 | O82: 8000 | S82: 园区管委会
A83: 65 | B83: 紧固件配套项目 | C83: 新建 | D83: 包括国星五金制品项目、颖星金属表面处理项目、鑫江五金项目、庆祥五金项目、鸿泽五金项目、品尚康丰五金项目。 | E83: 2021-2022 | F83: 34000 | G83: 0 | H83: 0 | I83: 0 | J83: 34000 | K83: 0 | L83: 0 | M83: 0 | N83: 34000 | O83: 12000 | S83: 园区管委会
A84: 66 | B84: 始兴县工业技改项目 | C84: 续建 | D84: 包括日本电产（韶关）有限公司的项目“智能家居产品微型马达扩产增效生产装备和技术工艺改造更新项目”、始兴县咖冠食品有限公司的项目“米粉生产线技术改造项目”等工业技改项目。 | E84: 2020-2022 | F84: 65000 | G84: 0 | H84: 0 | I84: 0 | J84: 65000 | K84: 0 | L84: 0 | M84: 0 | N84: 65000 | O84: 13100 | S84: 县工信局
A85: 67 | B85: 司前内石山风电 | C85: 新建 | D85: 位于司前镇西南部，规模80MW。 | E85: 2021-2022 | F85: 68047 | G85: 0 | H85: 0 | I85: 0 | J85: 68047 | K85: 0 | L85: 0 | M85: 0 | N85: 68047 | O85: 40000 | P85: 20 | S85: 县发改局
A86: 68 | B86: 光伏发电项目 | C86: 续建 | D86: 建设600MW光伏发电项目。 | E86: 2020-2023 | F86: 290000 | G86: 0 | H86: 0 | I86: 0 | J86: 290000 | K86: 0 | L86: 0 | M86: 78000 | N86: 212000 | O86: 20000 | P86: 62 | Q86: 62 | S86: 县发改局
A87: （三）现代服务业（12项） | F87: =SUM(F88:F99) -> 819091 | G87: 0 | H87: 0 | I87: 11641 | J87: 569800 | K87: 0 | L87: 19000 | M87: 72054 | N87: 747037 | O87: 94700 | P87: 1894 | Q87: 420
A88: 69 | B88: 粤港澳大湾区研学基地建设 | C88: 新建 | D88: 包括：1.韶关市始兴县科普研学旅游线路，包括车八岭自然科普基地，古塘秋月山庄科普基地，始兴县博物馆科普基地建设；2.沈所镇粤港澳大湾区始兴县红色研学旅基地；3.罗坝镇环车八岭游学康养基地，利用刘张家山林场、都亨片区等。4.太平镇水南村粤港澳大湾区研学游基地；5.澄江镇粤港澳大湾区研学旅游基地。 | E88: 2020-2025 | F88: 166000 | M88: 5030 | N88: 160970 | O88: 13000 | P88: 20 | S88: 县教育局
A89: 70 | B89: 水田垦造项目 | C89: 续建 | D89: 包括2020年水田垦造：太平镇水南村（垦造水田约242.06亩，新增水田面积223.18亩）及罗坝镇上岗村（垦造水田约591亩，新增水田面积539.66亩），2021年水田垦造面积约600亩，新增水田约500亩。 | E89: 2020-2022 | F89: 10641 | G89: 0 | H89: 0 | I89: 10641 | J89: 0 | K89: 0 | L89: 0 | M89: 2378 | N89: 8263 | O89: 6500 | R89: 2021年水田垦造正在进行项目选址工作。 | S89: 县自然资源局
A90: 71 | B90: 始兴心泉谷温泉旅游度假村 | C90: 续建 | D90: 项目占地面积10000000平方米，建设面积680000平方米；主要建设露天温泉、度假酒店、森林公园、农用改造风光带建设、旧村农房改造及商住项目等 | E90: 2019-2025 | F90: 100000 | G90: 0 | H90: 0 | I90: 0 | J90: 100000 | K90: 0 | L90: 0 | M90: 56596 | N90: 43404 | O90: 20000 | P90: 1020 | S90: 县自然资源局
A91: 72 | B91: 始兴县中古坑健康小镇项目 | C91: 新建 | D91: 项目占地14000亩，建设用地约787亩，发展生态体验、山地运动、养生养老、康体健身、林下经济等业态，建设三养三生产业集群（养生、养心、养老及生态、生活、生产）。 | E91: 2021-2023 | F91: 225000 | G91: 0 | H91: 0 | I91: 0 | J91: 225000 | K91: 0 | L91: 0 | M91: 0 | N91: 225000 | O91: 5000 | P91: 21 | R91: 已完成征地工作。 | S91: 县自然资源局
A92: 73 | B92: 纪元田园综合体项目 | C92: 续建 | D92: 项目位于县农科所地块，结合围楼小镇建设规划，拟建设规模约400亩的商务酒店套房、学校等，完善周边配套设施；打造规模约1000亩的休闲观光农业基地作为农旅结合旅游景点。通过学校接收八方学子来提高客流量，结合休闲观光农业基地，打造一个高端研学基地。 | E92: 2020-2025 | F92: 200000 | G92: 0 | H92: 0 | I92: 0 | J92: 200000 | K92: 0 | L92: 0 | M92: 0 | N92: 200000 | O92: 30000 | P92: 600 | Q92: 400 | S92: 顿岗镇
A93: 74 | B93: 水榭温泉项目（二期） | C93: 新建 | D93: 在水榭温泉一期的基础上进行扩建，新建一座儿童游乐场及公共温泉池，同时加盖民宿，增加游客容纳量。 | E93: 2021-2022 | F93: 5000 | G93: 0 | H93: 0 | I93: 0 | J93: 5000 | K93: 0 | L93: 0 | M93: 0 | N93: 5000 | O93: 1000 | P93: 20 | Q93: 20 | S93: 顿岗镇
A94: 75 | B94: 粤港澳大湾区始兴县智慧农旅基地 | C94: 新建 | D94: 继续扩大澄江镇盛丰千亩有机蔬菜种植基地、柏宏千亩特色水果种植基地、果香园千亩有机猕猴桃种植基地、佰兴千亩有机山茶油种植基地种植面积，新打造一个千亩香檬种植基地，新建1栋占地面积2000平方米的农产品包装车间和冷库。围绕5个千亩基地，加快发展智慧农业，打造集休闲、观光、采摘、民宿为一体的慢生活体验区和特色农旅项目。 | E94: 2021-2025 | F94: 20000 | G94: 0 | H94: 0 | I94: 0 | J94: 20000 | K94: 0 | L94: 0 | M94: 0 | N94: 20000 | O94: 5000 | S94: 澄江镇
A95: 76 | B95: 昌松客家民宿度假村 | C95: 新建 | D95: 占地规模140亩，主要建设客家文化广场、围楼温泉 酒店、康养民宿与度假公寓、户外温泉游乐场以及配套园林景观等。 | E95: 2021-2025 | F95: 18000 | G95: 0 | H95: 0 | I95: 0 | J95: 18000 | K95: 0 | L95: 0 | M95: 0 | N95: 18000 | O95: 0 | S95: 县文广旅体局
A96: 77 | B96: 满堂小院民宿建设项目 | C96: 新建 | D96: 项目位于满堂村黄水河岸边沙坝、临近香菇产业基地，占地面积33333平方米，建筑面积20000平方米，包括民俗15栋，接待中心1栋，餐饮服务中心1栋，还包括游泳池、钓鱼池、农业采摘等农家设施。 | E96: 2021-2022 | F96: 1800 | G96: 0 | H96: 0 | I96: 0 | J96: 1800 | K96: 0 | L96: 0 | M96: 0 | N96: 1800 | S96: 隘子镇
A97: 78 | B97: 始兴县满堂围文旅示范区改造升级 | C97: 续建 | D97: 满堂围升级改造、安防工程，围内布展（围楼文化展、农耕文化展、宗祠文化展等）等配套服务基础设施建设；官家老屋、白屋提档建设、河道、栈道景观提升。 | E97: 2019-2024 | F97: 20000 | G97: 0 | H97: 0 | I97: 1000 | J97: 0 | K97: 0 | L97: 19000 | M97: 1000 | N97: 19000 | O97: 5000 | P97: 50 | R97: 目前已完成白屋提档建设、河道、栈道景观提升，完成了围内布展工作。 | S97: 隘子镇
A98: 79 | B98: 红色旅游项目 | C98: 新建 | D98: 包括：1.隘子镇风度村爱国主义教育基地建设；2.沈所镇红色遗址群修缮项目、红色旅游服务区建设、红围（省委机关旧址）红色文化公园改造升级，完善配套服务设施。 | E98: 2020-2025 | F98: 32680 | M98: 5380 | N98: 27300 | O98: 8200 | P98: 146.4 | S98: 县文广旅体局
A99: 80 | B99: 少数民族文化旅游建设 | C99: 续建 | D99: 包括：1.深渡水乡瑶族风情建设项目，包含蜜瑶风情园、瑶族风情特色村寨、蜜瑶风情商业街、蜜瑶风雨桥、瑶歌楼秘园、盘王绿美古树公园、蜜瑶文化展览馆、蜜瑶文化广场、蜜瑶文化公园等项目建设。2.深渡水乡黄泥田畲族特色村寨。3.隘子镇瑶族特色旅游村建设项目。4.沈所镇瑶族风情文化旅游村、瑶族特色旅游村建设项目。 | E99: 2020-2025 | F99: 19970 | M99: 1670 | N99: 18300 | O99: 1000 | P99: 17 | S99: 县文广旅体局
A100: 三、社会民生项目（12项） | F100: =F101+F105+F107+F111 -> 179872 | G100: 6000 | H100: 0 | I100: 154872 | J100: 0 | K100: 0 | L100: 19000 | M100: 15569 | N100: 164303 | O100: 35055 | P100: 700.4 | Q100: 138.3
A101: （一）教育项目（3项） | F101: =SUM(F102:F104) -> 57343 | G101: 0 | H101: 0 | I101: 57343 | J101: 0 | K101: 0 | L101: 0 | M101: 500 | N101: 56843 | O101: 22400 | P101: 165 | Q101: 120
A102: 81 | B102: 学前教育补短板项目 | C102: 续建 | D102: 包括隘子镇中心幼儿园建设项目、墨江幼儿园新建项目、九龄幼儿园新建项目、杨公岭公办幼儿园，合计占地面积约45亩，建筑面积约1万5平方米。 | E102: 2020-2022 | F102: 14943 | G102: 0 | H102: 0 | I102: 14943 | J102: 0 | K102: 0 | L102: 0 | M102: 500 | N102: 14443 | O102: 10000 | P102: 45 | R102: 隘子镇中心幼儿园新建已完成勘察，施工已进场基础施工。墨江幼儿园正办理项目立项；杨公岭幼儿园已完可研报告，待审定；九龄幼儿园正进行项目征地。 | S102: 县教育局
A103: 82 | B103: 中小学校新扩建项目 | C103: 新建 | D103: 包括太平镇中心小学续建；逸夫小学、实验小学扩容；待现中等职业学校搬迁后改建一所九年一贯制学校；风度中学完善建设。 | E103: 2021-2023 | F103: 12400 | G103: 0 | H103: 0 | I103: 12400 | J103: 0 | K103: 0 | L103: 0 | M103: 0 | N103: 12400 | O103: 2400 | S103: 县教育局
A104: 83 | B104: 始兴县中等职业学校易地新建项目 | C104: 新建 | D104: 将原始兴县中等职业学校进行易地新建，项目用地总面积约150亩，建筑面积5万平方米。 | E104: 2021-2023 | F104: 30000 | G104: 0 | H104: 0 | I104: 30000 | J104: 0 | K104: 0 | L104: 0 | M104: 0 | N104: 30000 | O104: 10000 | P104: 120 | Q104: 120 | R104: 正进行可行性研究报告编制。 | S104: 县教育局
A105: （二）养老项目（1项） | F105: =F106 -> 5800 | G105: 0 | H105: 0 | I105: 5800 | J105: 0 | K105: 0 | L105: 0 | M105: 0 | N105: 5800 | O105: =O106 -> 1000 | P105: =P106 -> 15 | Q105: =Q106 -> 5
A106: 84 | B106: 敬老院新建提升项目 | C106: 新建 | D106: 包括：1.始兴县中心敬老院建设，建筑面积为12000平方米，建设二栋6-8层的综合服务楼；2.顿岗镇综合性敬老院，占地面积约20亩；3.新建太平镇养老院。 | E106: 2021-2025 | F106: 5800 | G106: 0 | H106: 0 | I106: 5800 | J106: 0 | K106: 0 | L106: 0 | M106: 0 | N106: 5800 | O106: 1000 | P106: 15 | Q106: 5 | S106: 县民政局
A107: （三）医疗卫生项目（3项） | F107: =SUM(F108:F110) -> 71500 | G107: 1000 | H107: 0 | I107: 70500 | J107: 0 | K107: 0 | L107: =SUM(L108:L110) -> 0 | M107: 6895 | N107: 64605 | O107: 5000 | P107: 65 | Q107: 13
A108: 85 | B108: 始兴县乡镇卫生院规范化建设项目 | C108: 续建 | D108: 建设马市镇卫生院公共卫生服务大楼；沈所镇卫生院改扩建，病床规模为35张床位；司前镇卫生院改扩建，病床规模为50张床位；深渡水乡卫生院迁建项目，病床规模为30张床位；以及10个基层卫生院升级改扩建、预防接种门诊室、发热诊室标准化建设、分诊点影像室、检验室建设和医院文化、信息化建设、医疗卫生垃圾暂存间、污水处理建设。 | E108: 2020-2023 | F108: 32000 | G108: 1000 | H108: 0 | I108: 31000 | J108: 0 | K108: 0 | L108: 0 | M108: 1895 | N108: 30105 | O108: 0 | P108: 38 | Q108: 10 | R108: 沈所镇卫生院、司前镇卫生院、深渡水乡卫生院均已完成规划选址、用地预审、可行性研究报告。 | S108: 县卫健局
A109: 86 | B109: 始兴县紧密型县域医共体建设项目 | C109: 新建 | D109: 包含整合县域医共体内部各单位信息化系统，搭建和完善县域统一的医疗信息共享平台，包括心电中心、影像中心、检验中心、远程会诊中心、消毒供应中心、会计中心、药械物资中心等信息平台，以及医疗机构设施设备的配置。 | E109: 2021-2023 | F109: 8000 | G109: 0 | H109: 0 | I109: 8000 | J109: 0 | K109: 0 | L109: 0 | M109: 0 | N109: 8000 | O109: 0 | S109: 县卫健局
A110: 87 | B110: 始兴县疾病预防控制机构标准化建设项目 | C110: 续建 | D110: 包括：1.疾病预防中心综合业务楼，建设一栋六层占地1000㎡，建筑面积6000㎡；2.应急物资储备中心和应急指挥楼，建设一栋四层占地800㎡，建筑面积3200㎡；3.检验楼，改造一栋四层占地583㎡，建筑面积2600㎡；4.公共卫生临床中心和精神卫生中心，一栋九层传染病防治综合楼，占地4900㎡，建筑面积13930㎡；建设一栋八层精神病管治楼；5.公共卫生临床中心门诊部（社区医院），公共卫生临床中心门诊部与社区医院共建拟选址于旧人民医院地块，占地面积10647平米，建筑面积15000平米，病床规模为99张床，建设内容：包括门诊楼、医技楼、住院楼改造项目，后勤生活综合及其他附属辅助用房和设备设施采购安装等；6.信息化配套建设、设备设施及附属设施等。 | E110: 2021-2023 | F110: 31500 | G110: 0 | H110: 0 | I110: 31500 | J110: 0 | K110: 0 | L110: 0 | M110: 5000 | N110: 26500 | O110: 5000 | P110: 27 | Q110: 3.3 | R110: 已完成用地预审、选址规划、可行性研究报告。 | S110: 县卫健局
A111: （四）文化体育项目（5项） | F111: =SUM(F112:F116) -> 45229 | G111: 5000 | H111: 0 | I111: 21229 | J111: 0 | K111: 0 | L111: 19000 | M111: 8174 | N111: 37055 | O111: 6655 | P111: 455.4 | Q111: 0
A112: 88 | B112: 始兴县市民活动中心（三馆合一）项目 | C112: 续建 | D112: 项目拟规划用地约20.3亩，建设内容包括：市民活动中心，老干部活动中心（老年大学），工人文化宫，城市停车场，总建筑面积约15000平方米。 | E112: 2018-2022 | F112: 10729 | G112: 0 | H112: 0 | I112: 10729 | J112: 0 | K112: 0 | L112: 0 | M112: 7574 | N112: 3155 | O112: 3155 | P112: 20.3 | Q112: 0 | R112: 已完成基础工程，计划2021年底完工。 | S112: 县住管局
A113: 89 | B113: 石湖公园 | C113: 新建 | D113: 新建石湖公园规划用地面积约20493平方米，主要建设园林绿化、休闲体育器材、小品等。 | E113: 2021-2025 | F113: 2500 | G113: 0 | H113: 0 | I113: 2500 | J113: 0 | K113: 0 | L113: 0 | M113: 0 | N113: 2500 | O113: 0 | P113: 300 | Q113: 0 | R113: 未启动。 | S113: 县住管局
A114: 90 | B114: 文体中心项目（二期） | C114: 新建 | D114: 田径运动项目包括看台、运动场、室外附属等工程，以及景观绿地9360平方米的建设。 | E114: 2021-2025 | F114: 8000 | G114: 0 | H114: 0 | I114: 8000 | J114: 0 | K114: 0 | L114: 0 | M114: 0 | N114: 8000 | O114: 500 | P114: 126.7 | R114: 未启动。 | S114: 县住管局
A115: 91 | B115: 始兴县影剧院建设项目 | C115: 新建 | D115: 项目建筑面积5600平方米，建设影剧院智能化系统、电梯系统，影剧院舞台机械、舞台灯光、电声系统等。 | E115: 2021-2022 | F115: 4000 | G115: 0 | H115: 0 | I115: 0 | J115: 0 | K115: 0 | L115: 4000 | M115: 0 | N115: 4000 | O115: 2000 | P115: 8.4 | R115: 已完成初步设计方案。 | S115: 县文广旅体局
A116: 92 | B116: 围楼群修缮项目 | C116: 续建 | D116: 对满堂围、长围、永成保障围等国、省保文物保护单位进行修缮保护，建设安保消防工程、技防、河道、绿化景观提升、围内布展等配套服务基础设施建设。 | E116: 2020-2025 | F116: 20000 | G116: 5000 | H116: 0 | I116: 0 | J116: 0 | K116: 0 | L116: 15000 | M116: 600 | N116: 19400 | O116: 1000 | P116: 0 | Q116: 0 | R116: 目前正在建设满堂围游客服务中心、改造满堂大桥；长围修缮维护；编制东湖坪永成保障围修缮设计方案。 | S116: 县文广旅体局
A117: 四、乡村振兴（8项） | F117: =SUM(F118:F125) -> 408510 | G117: =SUM(G118:G125) -> 0 | H117: 38067 | I117: 35043 | J117: 0 | K117: 0 | L117: 80000 | M117: 79300 | N117: 329210 | O117: 73660 | P117: 511 | Q117: 17
A118: 93 | B118: 始兴县墟镇提升“139”乡镇整治提升工程 | C118: 续建 | D118: 对我县马市镇、深渡水乡、顿岗镇、隘子镇、司前镇、沈所镇、罗坝镇、澄江镇等乡镇进行墟镇整治提升工程。 | E118: 2018-2025 | F118: 22700 | G118: 0 | H118: 0 | I118: 22700 | J118: 0 | K118: 0 | L118: 0 | M118: 10700 | N118: 12000 | O118: 12000 | R118: 1.马市镇、深渡水乡、顿岗镇、隘子镇墟镇提升已基本完成；2.计划2021年完成司前镇、沈所镇、罗坝镇、澄江镇整治提升。 | S118: 县住管局
A119: 94 | B119: 顿岗镇镇街整治提升 | C119: 新建 | D119: 主要包括罗坝河河道及沿岸整治提升，外立面统一二期工程，新建一座体育公园等，进一步完善顿岗镇基础设施建设，优化公共服务体系。 | E119: 2020-2024 | F119: 4600 | G119: 0 | H119: 0 | I119: 4600 | J119: 0 | K119: 0 | L119: 0 | M119: 0 | N119: 4600 | O119: 500 | S119: 顿岗镇
A120: 95 | B120: 始兴县农村安全饮用水保障工程 | C120: 续建 | D120: 新建花山水厂扩网工程9宗，河角水厂扩网工程1宗，花山水厂管网改造工程3宗，山区集中供水工程193宗，合计受益人口13.22万人。 | E120: 2020-2021 | F120: 25810 | G120: 0 | H120: 18067 | I120: 7743 | J120: 0 | K120: 0 | L120: 0 | M120: 5300 | N120: 20510 | O120: 20510 | P120: 19 | Q120: 15 | S120: 县水务局
A121: 96 | B121: 古村落保护修复项目 | C121: 续建 | D121: 包括：1.韶关市始兴县古村落保护提升工程，完善周前古村落旅游配套设施建设，开展不可移动文物消防、安防工程建设；2.罗坝镇“书香长围”古村落建设项目；3.隘子镇张九龄古村落人居环境整治示范村建设；4.澄江镇“百年碗厂·梦里方洞”铁寨方洞古村保护修复项目；5.深渡水乡坪田古村景区；6.沈南村古圩镇升级改造、石下村古村落保护与开发项目；7.太平镇东湖坪九栋十八厅抢救性保护项目；8.顿岗镇选陂古村落建设项目。 | E121: 2019-2025 | F121: 109200 | M121: 2000 | N121: 107200 | O121: 26150 | P121: 490 | Q121: 0 | S121: 县文广旅体局
A122: 97 | B122: 始兴县环车八岭乡村风貌示范带项目 | C122: 续建 | D122: 主要提升沿线乡村风貌，包含10条乡村风貌带建设，具体如下：1.罗坝镇：罗坝镇主街、淋头村至车八岭自然保护区、田心村至上岗村风貌带提升项目。2.太平镇：“总甫—东湖坪”乡村风貌示范带项目。3.澄江镇：澄江镇粤赣驿道•客韵澄江（G535善亨村至潭坑村段）省际村庄风貌带提升项目。4.司前镇：高速出口至月武、高速出口至车八岭乡村风貌示范带。5.司前镇隘子镇：温下村至隘子镇满堂村沿线新农村建设示范带项目。6.深渡水乡：“画里清化”省级新农村示范片项目；7.隘子镇九龄故居三村风貌示范片项目、满堂村客家文化风貌示范村项目；8.沈所镇：红围至八一村风貌示范带建设工程；9.城南周前至沈所花山人居环境整治项目；10.马市镇-顿岗镇-澄江镇现代农业观光风貌示范带项目。 | E122: 2020-2025 | F122: 60900 | M122: 5000 | N122: 55900 | O122: 7000 | P122: 2 | Q122: 2 | S122: 县农业农村局
A123: 98 | B123: 始兴县新农村示范村创建项目 | C123: 续建 | D123: 主要为整村推进美丽乡村示范村建设，基础设施提升、建筑立面改造、道路修复、绿化、景观提升等，包括：1.始兴县省定贫困村创建新农村示范村建设；2.罗坝镇淋头村，司前镇刘屋村，太平镇罗围村，总甫村、东湖坪村、城南镇周前村、沈所镇八一村等美丽乡村建设；3.国道323线“一轴两翼”美丽乡村示范长廊建设等。 | E123: 2018-2022 | F123: 79300 | M123: 49300 | N123: 30000 | S123: 县农业农村局
A124: 99 | B124: 始兴县全域推进农村人居环境综合整治补短板项目 | C124: 续建 | D124: 全县82个非省定贫困村实施排水、排污管网、房屋外立面整治、村内道路硬化等补短板项目，实施“四小园”及生态停车场、小广场等提升公共服务水平项目。 | E124: 2020-2025 | F124: 100000 | G124: 0 | H124: 20000 | I124: 0 | J124: 0 | K124: 0 | L124: 80000 | M124: 5000 | N124: 95000 | O124: 5000 | S124: 县农业农村局
A125: 100 | B125: 古驿道保护与建设项目 | C125: 续建 | D125: 包括：1.隘子镇张九龄古驿道建设项目。 2.南粤古驿道始兴段保护修复项目。 | E125: 2020-2025 | F125: 6000 | M125: 2000 | N125: 4000 | O125: 2500 | S125: 县文广旅体局
A126: 五、城区提质（9项） | F126: =SUM(F127:F135) -> 546000 | G126: 0 | H126: 0 | I126: 61000 | J126: 485000 | K126: 0 | L126: 0 | M126: 75797 | N126: 470203 | O126: 70285 | P126: 725.9 | Q126: 0
A127: 101 | B127: 始兴县老旧小区改造 | C127: 续建 | D127: 共完成27个老旧小区提升改造，共改造房屋约300栋6200户，改造建筑面积约63.7万平方米。 | E127: 2020-2025 | F127: 61000 | G127: 0 | H127: 0 | I127: 61000 | J127: 0 | K127: 0 | L127: 0 | M127: 3000 | N127: 58000 | O127: 17013 | P127: 0 | R127: 计划2021年完成城中老旧片区等9个老旧小区改造提升。 | S127: 县住管局
A128: 102 | B128: 金润国际大酒店 | C128: 新建 | D128: 建筑面积近9万平方米，酒店设置有近400间（套）房间，房内有中央空调及独立的温控系统，按照四星级以上酒店标准建设，提供宽带上网设施、国内（国际）直拨电话、国际卫星电视、VOD点播系统、迷你酒吧、电子保险箱、豪华舒适的浴室用品以及24小时的送餐服务。 | E128: 2021-2025 | F128: 20000 | G128: 0 | H128: 0 | I128: 0 | J128: 20000 | K128: 0 | L128: 0 | M128: 0 | N128: 20000 | S128: 县文广旅体局
A129: 103 | B129: 城东新区开发项目（始兴中学对面地块） | C129: 新建 | D129: 建设城东新区，土地面积约538.52亩。 | E129: 2021-2022 | F129: 50000 | G129: 0 | H129: 0 | I129: 0 | J129: 50000 | K129: 0 | L129: 0 | M129: 0 | N129: 50000 | O129: 5000 | P129: 538.52 | R129: 正在进行安置地摸底工作。 | S129: 县自然资源局
A130: 104 | B130: 城东明珠 | C130: 续建 | D130: 项目规划总用地面积21127平方米，规划建设7栋高层，总建筑面积约105000平方米。 | E130: 2020-2023 | F130: 25000 | G130: 0 | H130: 0 | I130: 0 | J130: 25000 | K130: 0 | L130: 0 | M130: 9989 | N130: 15011 | O130: 10000 | P130: 31.69 | S130: 县自然资源局
A131: 105 | B131: 金城苑（洪华小区） | C131: 续建 | D131: 规划用地面积10682平方米，用于房地产开发。 | E131: 2020-2023 | F131: 12600 | G131: 0 | H131: 0 | I131: 0 | J131: 12600 | K131: 0 | L131: 0 | M131: 12400 | N131: 200 | O131: 200 | P131: 16.02 | S131: 县自然资源局
A132: 106 | B132: 江南湾（城南老屠宰场地块） | C132: 续建 | D132: 规划建设用地面积4081平方米，建筑2栋21层商住楼。 | E132: 2020-2023 | F132: 8500 | G132: 0 | H132: 0 | I132: 0 | J132: 8500 | K132: 0 | L132: 0 | M132: 8291 | N132: 209 | O132: 209 | P132: 6.12 | S132: 县自然资源局
A133: 107 | B133: 碧桂园天樾湾（下门组地块） | C133: 续建 | D133: 规划用地面积20500平方米。 | E133: 2020-2023 | F133: 40000 | G133: 0 | H133: 0 | I133: 0 | J133: 40000 | K133: 0 | L133: 0 | M133: 32137 | N133: 7863 | O133: 7863 | P133: 30.75 | S133: 县自然资源局
A134: 108 | B134: 碧桂园丹凤府（原粤林车队） | C134: 续建 | D134: 规划建设用地面积为68534㎡，拟建筑总面积为197584.84㎡，其中计算容积率面积为169157.5㎡，容积率2.5。计划建设住宅（2-27层）共15栋、门楼1栋及临街商铺，其中住宅户数1309户共计161794.45㎡、商业建筑面积5368.48㎡，人防面积约7800㎡。洋房为精装交付、综合楼及门楼为精装交付、沿街商业为毛坯交付。 | E134: 2020-2024 | F134: 100000 | G134: 0 | H134: 0 | I134: 0 | J134: 100000 | K134: 0 | L134: 0 | M134: 9980 | N134: 90020 | O134: 30000 | P134: 102.8 | S134: 县自然资源局
A135: 109 | B135: 县城城市更新项目 | C135: 新建 | D135: 包括现供水桥南侧地块、城南上下林、林业局AB地块、标准厂地块、学区房地块（原看守所地块）、华厦地块、老汽车站地块、金润酒店西侧地块等地块改造项目。 | E135: 2021-2025 | F135: 228900 | G135: 0 | H135: 0 | I135: 0 | J135: 228900 | K135: 0 | L135: 0 | M135: 0 | N135: 228900 | O135: 0 | S135: 县自然资源局
